bitfinex/quotes_ETHUSD_20220215
["timestamp","ask_amount","ask_price","bid_price","bid_amount"]
[1644933672498,0.00618032,3115.0,3114.6,1.1752]
[1644933672796,0.0036096,3115.0,3114.6,1.4752]
[1644933672998,0.00618315,3115.0,3114.6,1.4752]
[1644933674038,0.0036096,3115.0,3114.6,1.4752]
[1644933674238,0.00618315,3115.0,3114.6,1.4752]
[1644933675040,0.00618315,3115.0,3114.6,2.27783]
[1644933675241,0.0036096,3115.0,3114.6,2.27783]
[1644933675441,0.00618315,3115.0,3114.6,2.27783]
[1644933675839,0.00618315,3115.0,3114.6,1.4752]
[1644933676239,0.0036096,3115.0,3114.6,1.4752]
[1644933676641,0.00618617,3115.0,3114.6,2.27784]
[1644933676842,0.00618617,3115.0,3114.6,1.97784]
[1644933677244,0.00618617,3115.0,3114.6,1.92784]
[1644933677442,0.01030474,3115.4,3114.6,1.92784]
[1644933677443,0.3,3115.1,3114.6,1.92784]
[1644933677691,0.00618617,3115.0,3114.8,0.3]
[1644933677890,0.00257657,3115.0,3114.8,0.3]
[1644933678094,0.00257657,3115.0,3114.8,1.10255]
[1644933678295,0.00618617,3115.0,3114.8,1.10255]
[1644933680895,0.01257649,3115.1,3114.8,1.11050369]
[1644933681092,0.01,3115.1,3114.8,1.11050369]
[1644933681357,0.01257628,3115.1,3114.8,1.11050369]
[1644933681550,0.01257628,3115.1,3114.8,1.12539745]
[1644933682349,0.01,3115.1,3114.8,1.12539745]
[1644933682552,0.01257628,3115.1,3114.8,1.16845738]
[1644933683558,0.01257628,3115.1,3114.8,1.18335114]
[1644933683559,0.01,3115.1,3114.8,1.18335114]
[1644933683752,0.01257628,3115.1,3114.8,1.18335114]
[1644933684553,0.01618588,3115.1,3114.8,1.22641107]
[1644933684753,0.0136096,3115.1,3114.8,1.22641107]
[1644933684954,0.01618601,3115.1,3114.8,1.22641107]
[1644933685590,0.01618601,3115.1,3114.8,1.269471]
[1644933685990,0.0136096,3115.1,3114.8,1.269471]
[1644933686195,0.01618601,3115.1,3114.8,1.269471]
[1644933686791,0.01618601,3115.1,3114.8,1.28436476]
[1644933687192,0.0136096,3115.1,3114.8,1.28436476]
[1644933687492,0.01618601,3115.1,3114.8,1.28436476]
[1644933687692,0.01618601,3115.1,3114.8,1.32742469]
[1644933688295,0.0136096,3115.1,3114.8,1.32742469]
[1644933688494,0.01618599,3115.1,3114.8,1.32742469]
[1644933688842,0.01618599,3115.1,3114.8,1.34231845]
[1644933689441,0.0136096,3115.1,3114.8,1.34231845]
[1644933689840,1.01618599,3115.1,3114.8,1.10721221]
[1644933690140,2.11876599,3115.1,3114.8,1.90980221]
[1644933690740,2.1161896,3115.1,3114.8,1.90980221]
[1644933690940,2.11876599,3115.1,3114.8,1.95286214]
[1644933691539,5.19673122,3115.1,3114.8,1.15031214]
[1644933691747,3.75,3114.9,3114.7,1.29748362]
[1644933691943,3.76258962,3114.8,3114.7,1.29748362]
[1644933692143,3.76258962,3114.8,3114.1,1.30227476]
[1644933692144,4.76258962,3114.8,3114.1,1.30227476]
[1644933692343,0.0036096,3114.7,3114.1,2.10508476]
[1644933692592,0.80281,3114.6,3114.1,2.12028007]
[1644933692791,3.25342049,3114.5,3114.1,2.12028007]
[1644933692993,0.0036096,3114.5,3114.1,2.12028007]
[1644933693193,1.0,3114.4,3114.1,2.12028007]
[1644933693395,3.11534303,3114.3,3114.1,2.12028007]
[1644933693596,3.11534303,3114.3,3114.1,0.96147538]
[1644933693792,1.0,3114.2,3114.1,0.96147538]
[1644933693998,1.0,3114.2,3114.1,0.15866538]
[1644933693999,4.63226214,3114.2,3114.1,0.15866538]
[1644933694195,1.3036096,3114.2,3114.1,0.15866538]
[1644933694394,0.3036096,3114.2,3114.1,0.15866538]
[1644933694593,0.3036096,3114.2,3114.1,0.17386069]
[1644933695594,0.0036096,3114.2,3114.1,0.489056]
[1644933695795,0.80902146,3114.3,3114.1,0.489056]
[1644933695998,0.80902146,3114.3,3114.1,0.36619237]
[1644933696196,0.80902146,3114.3,3114.1,0.189056]
[1644933696449,0.0103059,3114.8,3114.1,1.20971465]
[1644933696655,0.0103059,3114.8,3114.1,1.52491996]
[1644933696850,3.2909,3115.1,3114.3,3.21029]
[1644933697049,0.01,3115.1,3114.3,3.21029]
[1644933697252,1.36668928,3115.0,3114.8,0.01489376]
[1644933697850,1.66668928,3115.0,3114.8,1.11751376]
[1644933698050,1.36668928,3114.9,3114.8,1.11751376]
[1644933698250,1.36668928,3114.9,3114.8,0.31489376]
[1644933698450,1.36668928,3114.9,3114.8,0.35795369]
[1644933699256,1.102586,3115.0,3114.8,0.35795369]
[1644933699456,1.102586,3115.0,3114.8,0.40101362]
[1644933699457,1.10523347,3115.0,3114.8,0.40101362]
[1644933700296,1.102586,3115.0,3114.8,2.00615362]
[1644933700496,1.102586,3115.0,3114.8,2.02104738]
[1644933701496,1.102586,3115.0,3114.8,2.03594114]
[1644933701695,0.3,3115.0,3114.8,2.03675396]
[1644933702094,0.01,3115.1,3114.9,0.80246]
[1644933702495,0.01,3115.1,3114.9,0.80253]
[1644933702695,1.36665293,3115.0,3114.9,0.80253]
[1644933702896,0.01,3115.1,3114.9,0.80253]
[1644933703096,1.66666714,3115.0,3114.9,0.80253]
[1644933703294,1.66666714,3115.0,3114.8,2.48229054]
[1644933703497,0.3,3115.0,3114.8,1.29285047]
[1644933703946,1.36667955,3114.9,3114.8,1.29380329]
[1644933704143,1.36667955,3115.0,3114.8,1.29380329]
[1644933704345,1.11509495,3115.1,3114.8,1.29380329]
[1644933704842,1.11509495,3115.1,3114.8,1.30950987]
[1644933705044,1.36665366,3115.0,3114.8,2.10762344]
[1644933705246,1.36665366,3115.0,3114.8,1.81206987]
[1644933705645,1.36665366,3115.0,3114.8,1.82696363]
[1644933705845,1.36665366,3115.0,3114.8,1.82777645]
[1644933706546,1.11509495,3115.1,3114.8,1.82777645]
[1644933706745,1.11509495,3115.1,3114.8,1.84267021]
[1644933706945,1.11509495,3115.1,3114.8,1.84348303]
[1644933707346,1.11509495,3115.1,3114.9,0.3]
[1644933707592,5.19227841,3115.1,3114.8,1.84348303]
[1644933707891,5.19227841,3115.1,3114.8,1.08474578]
[1644933707892,1.36663844,3115.0,3114.8,1.08474578]
[1644933708693,1.36663844,3115.0,3114.8,2.68986578]
[1644933708893,1.1124541,3115.1,3114.9,0.3]
[1644933709092,1.11500556,3115.1,3114.9,0.3]
[1644933709894,1.1124541,3115.1,3114.9,0.3]
[1644933710094,1.36663832,3115.0,3114.9,0.3]
[1644933710294,1.36664107,3115.0,3114.9,0.3]
[1644933711098,1.36664107,3115.0,3114.9,0.30081282]
[1644933711746,1.11500553,3115.1,3114.9,0.30081282]
[1644933711942,0.31614299,3115.1,3114.9,0.30162564]
[1644933712346,0.01359156,3115.1,3115.0,0.80236]
[1644933712545,0.01,3115.1,3115.0,0.80236]
[1644933712943,0.01027446,3115.6,3115.0,0.80236]
[1644933713141,0.01027446,3115.6,3115.0,2.40681]
[1644933713342,0.01027446,3115.6,3115.2,1.60441]
[1644933713544,0.00359156,3115.8,3115.2,1.60441]
[1644933713743,1.36995995,3115.8,3115.3,0.3]
[1644933714143,1.66995995,3115.8,3115.3,0.3]
[1644933714344,1.66995995,3115.8,3115.3,1.60449]
[1644933714345,1.36636839,3115.7,3115.3,1.60449]
[1644933714543,0.00359156,3115.6,3115.3,1.60449]
[1644933714848,0.00359156,3115.6,3115.5,0.80225]
[1644933715098,1.36995995,3115.7,3115.5,0.80225]
[1644933715296,1.66995995,3115.7,3115.6,0.3]
[1644933715893,1.66995995,3115.7,3115.5,0.80225]
[1644933716194,0.00359156,3115.7,3115.5,0.80306282]
[1644933716394,0.00622599,3115.8,3115.7,0.80229]
[1644933716593,1.67259173,3115.8,3115.7,0.80229]
[1644933716793,2.47485423,3115.8,3115.7,0.3]
[1644933716993,2.47485423,3115.8,3115.6,1.1023]
[1644933717194,1.36636574,3115.7,3115.6,1.1023]
[1644933717594,1.66636574,3115.7,3115.6,1.1023]
[1644933717796,1.66636574,3115.7,3115.6,0.3]
[1644933717994,1.66636574,3115.7,3115.6,0.34305993]
[1644933718194,1.66636574,3115.7,3115.6,0.34387275]
[1644933718401,1.66636574,3115.7,3115.2,4.01114]
[1644933718402,6.85,3115.4,3114.8,1.11813612]
[1644933718599,1.45795178,3114.6,3113.4,0.48251702]
[1644933718859,1.45795178,3114.6,3113.5,5.8218]
[1644933718860,4.86636574,3114.5,3113.5,5.8218]
[1644933719057,1.83136574,3114.4,3113.5,5.8218]
[1644933719256,5.0,3114.0,3113.5,1.149]
[1644933719560,5.0,3113.8,3113.5,1.149]
[1644933719756,6.75,3113.6,3112.2,4.6728]
[1644933720063,5.33136574,3113.5,3113.2,0.00202937]
[1644933720357,4.55,3113.3,3112.3,2.3675]
[1644933720557,0.465,3113.2,3112.3,2.3675]
[1644933720759,1.765,3113.2,3112.3,2.3675]
[1644933720955,0.80322,3113.0,3112.3,2.3675]
[1644933721157,3.55848013,3112.9,3112.3,2.3675]
[1644933721459,0.8031848,3112.8,3112.3,2.3675]
[1644933721756,4.01925851,3112.7,3112.3,2.3675]
[1644933722156,1.80326,3112.6,3112.3,2.3675]
[1644933722356,0.465,3112.5,3112.3,2.3675]
[1644933722594,0.765,3112.5,3112.3,2.3675]
[1644933723390,0.465,3112.4,3112.3,2.3675]
[1644933723590,3.74510329,3112.4,3112.3,2.3675]
[1644933723992,3.63368932,3112.4,3112.3,2.3675]
[1644933724891,0.465,3112.4,3112.3,2.3675]
[1644933725095,0.765,3112.4,3112.3,2.3675]
[1644933725293,1.765,3112.4,3112.3,2.3675]
[1644933727040,4.80514074,3112.4,3112.3,2.3675]
[1644933729441,4.8212749,3112.4,3112.3,2.3675]
[1644933729641,1.765,3112.4,3112.3,2.3675]
[1644933729842,0.465,3112.4,3112.3,2.3675]
[1644933730096,0.8032359,3112.6,3112.3,2.3675]
[1644933730298,0.8032359,3112.6,3112.3,2.6675]
[1644933730895,0.8032359,3112.6,3112.3,2.3675]
[1644933731295,1.1032359,3112.6,3112.3,2.3675]
[1644933731695,2.1032359,3112.6,3112.3,2.3675]
[1644933731895,2.1032359,3112.6,3112.3,2.37032255]
[1644933732098,0.3,3112.6,3112.3,2.37032255]
[1644933732299,0.465,3113.2,3112.3,3.73322255]
[1644933732497,1.5,3113.5,3112.3,3.73322255]
[1644933732699,0.5,3113.5,3112.3,3.73322255]
[1644933732901,0.5,3113.5,3112.3,3.7304]
[1644933733099,0.5,3113.5,3112.6,0.00282236]
[1644933733300,0.5,3113.5,3112.8,1.10297]
[1644933733700,0.8029654,3113.3,3112.9,1.1285]
[1644933734137,0.3,3113.2,3112.9,1.1285]
[1644933734437,0.3,3113.2,3113.0,0.0028221]
[1644933735336,0.3,3113.2,3112.9,1.1285]
[1644933735541,0.3,3113.2,3112.9,1.13132213]
[1644933736341,0.3,3113.2,3112.9,1.1285]
[1644933736740,0.3,3113.2,3112.9,1.13088302]
[1644933737593,0.3,3113.2,3112.9,1.1285]
[1644933737893,0.3,3113.2,3112.9,1.13088302]
[1644933738793,0.3,3113.2,3112.9,1.1285]
[1644933738993,0.3,3113.2,3112.9,1.13088302]
[1644933739995,0.3,3113.2,3112.9,1.1285]
[1644933740201,0.3,3113.2,3112.9,1.13088302]
[1644933740602,0.21605545,3113.2,3112.9,1.13088302]
[1644933740801,1.0,3113.5,3112.9,1.13088302]
[1644933740996,0.0020621,3113.7,3112.9,1.13088302]
[1644933741199,1.5,3113.8,3112.9,1.1285]
[1644933741462,0.0021948,3113.7,3113.1,0.80279]
[1644933741665,0.0021948,3113.7,3113.2,1.6056]
[1644933741861,0.0021948,3113.7,3113.2,1.9056]
[1644933742060,0.0021948,3113.7,3113.3,1.2054]
[1644933742462,1.8,3113.8,3113.3,5.8371]
[1644933742661,0.00219501,3113.7,3113.3,6.6399]
[1644933743463,0.00219501,3113.7,3113.3,8.24549]
[1644933743664,2.6028166,3113.8,3113.3,8.24549]
[1644933743966,2.6028166,3113.8,3113.3,7.44269]
[1644933743967,1.00219501,3113.7,3113.3,7.44269]
[1644933744765,1.0,3113.7,3113.3,5.8371]
[1644933744964,1.0,3113.7,3113.3,6.64006]
[1644933745194,1.00216534,3113.7,3113.3,6.64006]
[1644933745388,1.46716534,3113.7,3113.3,6.64006]
[1644933745988,1.465,3113.7,3113.3,5.8371]
[1644933746189,1.46716534,3113.7,3113.3,5.8371]
[1644933746587,1.46716534,3113.7,3113.3,4.37868282]
[1644933747189,1.465,3113.7,3113.3,4.37868282]
[1644933747390,1.43436534,3113.7,3113.3,4.37868282]
[1644933748392,1.4322,3113.7,3113.3,5.18156282]
[1644933748589,1.4322,3113.7,3113.3,5.18165282]
[1644933748839,1.43437198,3113.7,3113.3,5.18165282]
[1644933749541,1.4322,3113.7,3113.3,5.18165282]
[1644933749741,1.43437198,3113.7,3113.3,5.18165282]
[1644933750744,1.4322,3113.7,3113.4,0.3]
[1644933750950,1.4322,3113.7,3113.5,0.80294]
[1644933750951,1.43437198,3113.7,3113.5,0.80294]
[1644933751347,1.43437198,3113.7,3113.5,1.10294]
[1644933751845,1.43437198,3113.7,3113.5,0.80294]
[1644933752045,1.4322,3113.7,3113.5,0.80294]
[1644933752447,1.4322,3113.7,3113.3,5.98442282]
[1644933753502,1.4322,3113.7,3113.2,1.2055]
[1644933753695,4.3414289,3113.7,3113.2,1.2055]
[1644933753896,3.8414289,3113.7,3113.2,1.2055]
[1644933754396,0.80317,3113.6,3113.2,1.2055]
[1644933754597,0.465,3113.5,3113.2,1.2055]
[1644933755295,0.465,3113.5,3113.0,0.00178786]
[1644933755495,2.0712878,3113.5,3112.7,1.1864]
[1644933755796,0.803118,3113.2,3113.0,0.00270417]
[1644933755999,0.465,3113.1,3113.0,0.00270417]
[1644933756196,0.465,3113.1,3112.7,0.31179494]
[1644933756447,0.465,3113.1,3112.6,4.2424]
[1644933756645,0.465,3113.1,3112.7,1.60624]
[1644933756848,1.2680863,3113.1,3112.7,1.60624]
[1644933758449,0.8030863,3113.1,3112.7,1.60624]
[1644933758751,1.8030863,3113.1,3112.7,1.60624]
[1644933758947,0.8030863,3113.1,3112.7,1.60624]
[1644933759148,1.8030863,3113.1,3112.7,1.60624]
[1644933759351,1.8030863,3113.1,3112.7,1.6082654]
[1644933760396,1.8030863,3113.1,3112.7,1.60624]
[1644933760598,1.8030863,3113.1,3112.7,1.60906492]
[1644933761596,1.8030863,3113.1,3112.7,1.60624]
[1644933761798,1.8030863,3113.1,3112.7,1.60906492]
[1644933762798,1.8030863,3113.1,3112.7,1.60624]
[1644933763098,1.8030863,3113.1,3112.7,1.60906492]
[1644933763967,1.8030863,3113.1,3112.7,1.60624]
[1644933764462,1.8030863,3113.1,3112.7,1.60906492]
[1644933765266,0.8030863,3113.1,3112.7,1.60624]
[1644933765466,0.8030863,3113.1,3112.7,2.41208492]
[1644933766468,0.8030863,3113.1,3112.7,2.40926]
[1644933766665,0.8030863,3113.1,3112.7,2.41208492]
[1644933767695,0.8030863,3113.1,3112.7,2.40926]
[1644933767894,0.8030863,3113.1,3112.7,2.41182387]
[1644933768697,0.8030863,3113.1,3112.7,2.40926]
[1644933768999,0.8030863,3113.1,3112.7,2.4116484]
[1644933769999,1.9061726,3113.2,3112.7,2.40926]
[1644933770000,1.1029158,3113.2,3112.7,2.40926]
[1644933770202,1.1029158,3113.2,3112.9,0.80292]
[1644933772450,2.7089177,3113.2,3112.9,0.80292]
[1644933773351,2.7089177,3113.2,3112.8,1.98493189]
[1644933773551,2.7089177,3113.2,3112.8,1.98252]
[1644933773950,2.7089177,3113.2,3112.8,1.98496748]
[1644933774551,2.7089177,3113.2,3113.0,0.80298]
[1644933777492,2.70784389,3113.2,3113.0,0.80298]
[1644933778844,2.70784389,3113.2,3113.1,3.52493595]
[1644933778845,1.10182829,3113.2,3113.1,3.52493595]
[1644933779045,0.29892619,3113.2,3113.0,0.80298]
[1644933779251,0.3,3113.5,3113.0,0.80298]
[1644933779444,0.3,3113.5,3113.1,0.80282]
[1644933779645,0.3,3113.7,3113.2,0.80281]
[1644933779844,1.8,3113.8,3113.2,2.04661]
[1644933780145,1.36707124,3113.7,3113.2,2.84942]
[1644933780550,2.16987124,3113.7,3113.3,1.60565]
[1644933780846,0.8028,3113.7,3113.3,0.80282]
[1644933781450,0.8028,3113.7,3113.3,2.40841]
[1644933781648,0.8028,3113.7,3113.4,0.80282]
[1644933781951,0.8028,3113.7,3113.4,0.80279]
[1644933782347,0.8028,3113.7,3113.4,0.69307165]
[1644933782801,0.8028,3113.7,3113.5,0.8028]
[1644933783202,0.8028,3113.7,3113.5,1.25097772]
[1644933783403,1.8,3113.8,3113.5,2.05371772]
[1644933783603,1.8,3113.8,3113.5,1.90554]
[1644933783904,1.8,3113.8,3113.5,0.80269]
[1644933784405,2.6027337,3113.8,3113.5,0.80269]
[1644933785505,2.6027337,3113.8,3113.5,1.60556]
[1644933785804,2.6027337,3113.8,3113.5,0.80269]
[1644933786446,2.6027337,3113.8,3113.2,1.2438]
[1644933786644,0.8029065,3113.7,3113.2,1.2438]
[1644933786848,0.8029065,3113.7,3113.2,2.84966]
[1644933787044,0.8029065,3113.7,3113.2,2.04671]
[1644933787247,0.8029065,3113.7,3113.3,0.80293]
[1644933787943,0.8029065,3113.7,3113.3,1.60587]
[1644933788146,0.8029065,3113.7,3113.3,0.80293]
[1644933788548,0.8029065,3113.7,3113.3,0.75293]
[1644933788949,0.8029065,3113.7,3113.4,0.80291]
[1644933789755,0.8029065,3113.7,3113.4,1.60576]
[1644933789953,0.8029065,3113.7,3113.5,0.80289]
[1644933794146,0.8029065,3113.7,3113.4,0.80291]
[1644933794746,0.8029065,3113.7,3113.2,1.2438]
[1644933795747,0.8029065,3113.7,3113.2,2.84968]
[1644933795946,0.8029065,3113.7,3113.2,2.04674]
[1644933796548,1.8029065,3113.7,3113.2,2.04674]
[1644933797249,1.8029065,3113.7,3113.3,0.80286]
[1644933797455,1.8029065,3113.7,3113.3,0.80278]
[1644933797700,0.8029065,3113.7,3113.3,0.80278]
[1644933798498,0.8029065,3113.7,3113.4,0.80278]
[1644933798898,1.1029065,3113.7,3113.4,0.80278]
[1644933801347,0.9616,3113.5,3113.4,0.80278]
[1644933801744,1.2616,3113.5,3113.4,1.60554]
[1644933801945,1.2616,3113.5,3113.4,0.80278]
[1644933803148,0.9616,3113.5,3113.4,0.80278]
[1644933803349,1.2616,3113.5,3113.4,0.80278]
[1644933805199,0.9616,3113.5,3113.4,0.80278]
[1644933805595,1.2616,3113.5,3113.4,0.80278]
[1644933805800,0.9616,3113.5,3113.4,0.80278]
[1644933806098,1.2616,3113.5,3113.4,0.80278]
[1644933808300,1.2616,3113.5,3113.3,0.80289]
[1644933808501,2.0645005,3113.5,3113.3,0.80289]
[1644933808701,2.06304347,3113.5,3113.3,0.80289]
[1644933811053,2.06304347,3113.5,3113.2,2.84953]
[1644933811054,1.36729375,3113.4,3113.2,1.2438]
[1644933811248,1.2616,3113.3,3113.2,1.2438]
[1644933811450,2.62889375,3113.3,3113.2,1.2438]
[1644933811949,1.2616,3113.3,3113.2,1.2438]
[1644933812149,0.9616,3113.3,3113.2,1.2438]
[1644933812797,0.9616,3113.3,3113.2,1.5438]
[1644933813795,1.2616,3113.3,3113.2,1.5438]
[1644933813996,1.2616,3113.3,3113.2,2.34652]
[1644933814598,1.2616,3113.3,3113.2,2.04652]
[1644933814800,1.2616,3113.3,3113.2,2.34652]
[1644933816850,1.2616,3113.3,3113.2,2.04652]
[1644933817747,1.2616,3113.3,3113.2,2.34652]
[1644933818747,1.2616,3113.3,3113.2,2.04652]
[1644933821598,1.2616,3113.3,3113.2,1.2438]
[1644933831456,1.26028737,3113.3,3113.2,1.2438]
[1644933833058,2.62755193,3113.3,3113.2,1.2438]
[1644933833458,1.26028737,3113.3,3113.2,1.2438]
[1644933833662,2.62757055,3113.3,3113.2,1.2438]
[1644933833860,2.62757055,3113.3,3112.8,1.61131383]
[1644933834059,1.26028737,3113.3,3112.9,1.1306]
[1644933834263,0.9616,3113.1,3112.9,1.1306]
[1644933834459,0.9616,3113.0,3112.9,1.1306]
[1644933835512,2.32903276,3113.0,3112.9,1.1306]
[1644933835913,3.32903276,3113.0,3112.9,1.1306]
[1644933836113,1.9616,3113.0,3112.9,1.1306]
[1644933836312,2.764769,3113.0,3112.8,0.0077978]
[1644933836515,4.371089,3113.0,3112.8,0.0077978]
[1644933837412,2.764769,3113.0,3112.8,0.00535383]
[1644933837615,1.764769,3113.0,3112.8,0.80839383]
[1644933839154,2.064769,3113.0,3112.8,0.80839383]
[1644933841159,2.064769,3113.0,3112.8,0.00535383]
[1644933841361,3.064769,3113.0,3112.8,0.00535383]
[1644933842697,3.867839,3113.0,3112.8,0.00535383]
[1644933844502,3.064769,3113.0,3112.8,0.00535383]
[1644933844905,3.064769,3113.0,3112.8,0.80838383]
[1644933845502,3.867819,3113.0,3112.8,0.80838383]
[1644933845703,3.867819,3113.0,3112.8,0.00535383]
[1644933845903,3.867819,3113.0,3112.6,4.24775383]
[1644933846112,3.867819,3113.0,3112.7,0.00244412]
[1644933846872,3.867819,3113.0,3112.7,0.80305]
[1644933847269,3.867819,3113.0,3112.7,0.80549415]
[1644933847270,3.064769,3113.0,3112.7,0.80549415]
[1644933847472,2.064769,3113.0,3112.7,0.80549415]
[1644933847670,2.064769,3113.0,3112.7,1.60848415]
[1644933847969,2.064769,3113.0,3112.8,0.80294]
[1644933848369,2.064769,3113.0,3112.8,1.10294]
[1644933848570,1.764769,3113.0,3112.9,3.52844168]
[1644933848769,1.764769,3113.0,3112.8,1.10294]
[1644933849170,1.764769,3113.0,3112.9,3.46777313]
[1644933849772,1.2616,3113.0,3112.9,3.46777313]
[1644933850210,1.2616,3113.0,3112.9,4.46777313]
[1644933851906,1.2616,3113.0,3112.9,1.0]
[1644933852511,1.2616,3113.0,3112.8,6.23425281]
[1644933852705,1.2616,3113.0,3112.8,2.76174409]
[1644933852907,1.2616,3113.0,3112.8,2.7593]
[1644933853404,1.26063969,3113.0,3112.8,2.7593]
[1644933854260,2.06360069,3113.0,3112.8,1.1536]
[1644933855556,2.06360069,3113.0,3112.8,1.95663]
[1644933856757,2.06360069,3113.0,3112.8,2.25663]
[1644933858401,2.06360069,3113.0,3112.8,1.95663]
[1644933860104,2.06360069,3113.0,3112.8,2.25663]
[1644933860607,2.06360069,3113.0,3112.8,3.25663]
[1644933861650,2.06360069,3113.0,3112.8,1.95663]
[1644933866624,2.06360069,3113.0,3112.7,1.95272475]
[1644933866829,3.06360069,3113.0,3112.7,0.00258175]
[1644933867026,0.9616,3112.8,3112.7,0.00258175]
[1644933867227,0.9616,3112.7,3112.1,0.00535383]
[1644933867426,1.66751052,3112.8,3112.1,0.00535383]
[1644933867427,0.9616,3112.5,3112.1,0.00535383]
[1644933867825,0.9616,3112.4,3112.1,0.00535383]
[1644933869052,0.9616,3112.2,3112.1,0.00535383]
[1644933869353,1.2616,3112.2,3112.1,0.00535383]
[1644933870553,4.33579786,3112.2,3112.1,0.00535383]
[1644933870952,2.2616,3112.2,3112.1,0.00535383]
[1644933872607,5.32957352,3112.2,3112.1,0.00535383]
[1644933873108,4.32957352,3112.2,3112.1,0.00535383]
[1644933873509,1.2616,3112.2,3112.1,0.00535383]
[1644933874011,4.28036246,3112.2,3112.1,0.00535383]
[1644933874208,1.2616,3112.2,3112.1,0.00535383]
[1644933875612,0.9616,3112.2,3112.1,0.00535383]
[1644933875816,0.9616,3112.2,3112.1,3.87851559]
[1644933876011,0.9616,3112.2,3112.1,4.87851559]
[1644933876210,0.9616,3112.2,3112.1,1.00535383]
[1644933877372,1.2616,3112.2,3112.1,1.00535383]
[1644933879969,0.9616,3112.2,3112.1,1.00535383]
[1644933880209,0.9616,3112.2,3112.1,23.59399384]
[1644933880402,0.9616,3112.2,3112.1,24.59399384]
[1644933881007,0.9616,3112.2,3112.1,25.63749151]
[1644933882205,0.9616,3112.2,3112.1,2.30535383]
[1644933882407,0.9616,3112.2,3112.1,1.00535383]
[1644933882606,1.2616,3112.2,3112.1,1.00535383]
[1644933884260,1.2616,3112.2,3112.1,0.00535383]
[1644933890007,1.26026227,3112.2,3112.1,0.00535383]
[1644933900362,0.8031439,3112.5,3112.2,2.95]
[1644933900559,3.3036,3112.8,3112.3,0.80842383]
[1644933900758,3.3036,3112.8,3112.4,0.80307]
[1644933900962,1.6060565,3113.2,3112.4,1.93597]
[1644933901162,53.70789761,3113.1,3112.4,1.93597]
[1644933901462,53.70789761,3113.1,3112.4,1.9384032]
[1644933902260,53.70789761,3113.1,3112.4,1.93597]
[1644933902461,54.51089971,3113.1,3112.5,1.60851312]
[1644933902709,54.51089971,3113.1,3112.5,0.80553312]
[1644933903515,54.51089971,3113.1,3112.4,1.1329]
[1644933903711,0.8032348,3112.9,3112.5,0.00243312]
[1644933904314,1.36765267,3112.8,3112.5,0.00243312]
[1644933904515,1.36765267,3112.8,3112.0,0.80860383]
[1644933904715,2.17094347,3112.8,3112.1,0.00535383]
[1644933904913,2.17094347,3112.8,3112.5,0.0024331]
[1644933904914,1.6063894,3112.7,3112.5,0.0024331]
[1644933905115,1.0,3112.8,3112.5,0.0024331]
[1644933905313,0.97016123,3113.2,3112.5,0.0024331]
[1644933905514,1.36756013,3113.1,3112.5,0.8055331]
[1644933905713,0.3,3113.0,3112.7,0.80305]
[1644933905914,2.17061193,3112.9,3112.7,0.80305]
[1644933906113,0.3,3112.8,3112.7,0.80305]
[1644933906756,0.8030518,3112.9,3112.7,0.80305]
[1644933906956,0.8030518,3112.9,3112.7,1.60611]
[1644933907555,0.8030518,3112.9,3112.6,0.80309]
[1644933907956,0.8030205,3113.1,3112.6,0.80309]
[1644933908156,0.8030205,3113.1,3112.7,0.80307]
[1644933908357,0.5,3113.4,3112.7,0.80307]
[1644933908556,2.97349179,3113.3,3112.7,1.60608]
[1644933908756,1.36742699,3113.2,3112.8,0.80301]
[1644933909057,2.17039569,3113.2,3112.8,0.80301]
[1644933909255,1.6060648,3113.3,3112.8,0.80301]
[1644933909256,1.36742699,3113.1,3112.8,0.80301]
[1644933909457,1.6060648,3113.3,3112.8,1.60606]
[1644933909661,2.3674102,3113.2,3112.8,1.60606]
[1644933909857,1.0,3113.2,3112.8,0.80301]
[1644933910316,0.8030559,3113.1,3112.8,0.80301]
[1644933910815,0.8030559,3113.1,3112.8,1.2001]
[1644933913117,41.29154539,3112.9,3112.8,1.2001]
[1644933915156,42.65905572,3112.9,3112.8,1.2001]
[1644933916350,41.29154539,3112.9,3112.8,1.2001]
[1644933916751,41.29154539,3112.9,3112.3,0.00535383]
[1644933916951,2.17070705,3112.8,3112.5,0.00243312]
[1644933917152,1.36756075,3112.7,3112.5,0.00243312]
[1644933917452,42.89783799,3112.9,3112.5,0.00243312]
[1644933917712,41.29154539,3112.9,3112.6,0.80309]
[1644933917907,42.09460189,3112.9,3112.6,0.80309]
[1644933918108,41.98516995,3112.9,3112.6,0.80309]
[1644933918712,41.29154539,3112.9,3112.6,1.60613]
[1644933918911,41.29154539,3112.9,3112.7,0.803]
[1644933919110,41.29154539,3112.9,3112.7,1.606]
[1644933919912,41.29154539,3112.9,3112.7,2.40898]
[1644933924758,41.29005921,3112.9,3112.7,2.40898]
[1644933925206,41.29005921,3112.9,3112.7,1.606]
[1644933925411,41.29005921,3112.9,3112.7,0.803]
[1644933925805,41.29005921,3112.9,3112.6,0.80312]
[1644933926805,1.36751335,3112.8,3112.6,0.80312]
[1644933927006,42.09312591,3112.9,3112.6,0.80312]
[1644933927405,42.09312591,3112.9,3112.6,1.10312]
[1644933927605,42.09312591,3112.9,3112.7,0.80306]
[1644933930670,42.09312591,3112.9,3112.5,0.80558311]
[1644933930671,0.8031657,3112.8,3112.5,0.80558311]
[1644933931066,0.8031657,3112.8,3112.5,0.80315]
[1644933931265,0.8031657,3112.8,3112.5,0.80558312]
[1644933932368,0.8031657,3112.8,3112.5,0.80315]
[1644933932603,0.8031657,3112.8,3112.5,0.80558312]
[1644933932804,41.29005921,3112.9,3112.5,0.80558312]
[1644933933405,41.29005921,3112.9,3112.5,0.80315]
[1644933933805,41.29005921,3112.9,3112.5,0.80558309]
[1644933934204,42.09314021,3112.9,3112.5,0.80558309]
[1644933934407,41.29005921,3112.9,3112.5,0.80558309]
[1644933934608,41.29005921,3112.9,3112.5,0.80315]
[1644933935008,41.29005921,3112.9,3112.5,0.80558309]
[1644933935307,41.29005921,3112.9,3112.5,1.60870309]
[1644933935608,41.29005921,3112.9,3112.6,0.80307]
[1644933935809,41.29005921,3112.9,3112.3,1.15675383]
[1644933936207,42.09317371,3112.9,3112.5,0.00243309]